lending/lending_fUSD_20240219
["ID","MTS","AMOUNT","RATE_DAILY","PERIOD"]
[314480344,1708375890638,-1637.57,0.00046849,30]
[314480345,1708375890647,-500.0,0.00046849,30]
[314480346,1708375890656,-500.0,0.00046849,30]
[314480347,1708375890665,-764.0,0.00046849,30]
[314480348,1708375890675,-2380.23,0.00046849,30]
[314480349,1708375890684,-947.27,0.00046849,30]
[314480350,1708375890694,-500.0,0.00046849,30]
[314480351,1708375890703,-500.0,0.00046849,30]
[314480352,1708375890712,-500.0,0.00046849,30]
[314480353,1708375890721,-500.0,0.00046849,30]
[314480354,1708375890730,-500.0,0.00046849,30]
[314480355,1708375890739,-500.0,0.00046849,30]
[314480356,1708375890749,-500.0,0.00046849,30]
[314480357,1708375890758,-5708.36,0.00046849,30]
[314480358,1708375890767,-23500.73,0.00046849,30]
[314480359,1708375890776,-500.0,0.00046849,30]
[314480360,1708375890785,-500.0,0.00046849,30]
[314480361,1708375890794,-500.0,0.00046849,30]
[314480362,1708375890803,-500.0,0.00046849,30]
[314480363,1708375890813,-521.33,0.00046849,30]
[314480364,1708375890823,-500.0,0.00046849,30]
[314480365,1708375890831,-3029.82,0.00046849,30]
[314480366,1708375890840,-500.0,0.00046849,30]
[314480367,1708375890849,-1961.93,0.00046849,30]
[314480368,1708375890858,-500.0,0.00046849,30]
[314480369,1708375890867,-532.9,0.00046849,30]
[314480370,1708375890877,-500.0,0.00046849,30]
[314480371,1708375890886,-2118.66,0.00046849,30]
[314480372,1708375890895,-599.57,0.00046849,30]
[314480373,1708375890905,-500.0,0.00046849,30]
[314480374,1708375890914,-500.0,0.00046849,30]
[314480375,1708375890923,-500.0,0.00046849,30]
[314480376,1708375890932,-500.0,0.00046849,30]
[314480377,1708375890941,-500.0,0.00046849,30]
[314480378,1708375890952,-500.0,0.00046849,30]
[314480379,1708375890961,-592.15006999,0.00046849,30]
[314480380,1708375890971,-500.0,0.00046849,30]
[314480381,1708375890980,-2534.45,0.00046849,30]
[314480382,1708375890989,-2219.53,0.00046849,30]
[314480383,1708375890999,-1000.0,0.00046849,30]
[314480384,1708375891008,-500.0,0.00046849,30]
[314480385,1708375891019,-4072.8,0.00046849,30]
[314480386,1708375891027,-151.0,0.00046849,14]
[314480387,1708375891037,-6525.8,0.00046849,30]
[314480388,1708375891046,-151.0,0.00046849,14]
[314480389,1708375891056,-500.0,0.00046849,30]
[314480390,1708375891067,-525.41305162,0.00046849,30]
[314480391,1708375891082,-1226.32,0.00046849,30]
[314480392,1708375891091,-3574.68,0.00046849,30]
[314480393,1708375891099,-2415.59,0.00046849,30]
[314480394,1708375891109,-500.0,0.00046849,30]
[314480395,1708375891119,-500.0,0.00046849,30]
[314480396,1708375891128,-500.0,0.00046849,30]
[314480397,1708375891137,-500.0,0.00046849,30]
[314480398,1708375891147,-500.0,0.00046849,30]
[314480399,1708375891156,-895.28,0.00046849,30]
[314480400,1708375891167,-500.0,0.00046849,30]
[314480401,1708375891176,-1108.54,0.00046849,30]
[314480402,1708375891186,-500.0,0.00046849,30]
[314480403,1708375891195,-500.0,0.00046849,30]
[314480404,1708375891204,-500.0,0.00046849,30]
[314480405,1708375891213,-500.0,0.00046849,30]
[314480406,1708375891222,-500.0,0.00046849,30]
[314480407,1708375891232,-500.0,0.00046849,30]
[314480408,1708375891242,-2463.17,0.00046849,30]
[314480409,1708375891251,-1236.32,0.00046849,30]
[314480410,1708375891261,-627.3444299,0.00046849,30]
[314480411,1708375891271,-500.0,0.00046849,30]
[314480412,1708375891281,-676.335609,0.00046849,14]
[314480413,1708375891290,-2672.0,0.00046849,30]
[314480414,1708375891299,-500.0,0.00046849,30]
[314480415,1708375891309,-676.335609,0.00046849,14]
[314480416,1708375891318,-500.0,0.00046849,30]
[314480417,1708375891328,-500.0,0.00046849,30]
[314480418,1708375891337,-641.81145312,0.00046849,30]
[314480419,1708375891346,-768.47,0.00046849,30]
[314480420,1708375891357,-500.0,0.00046849,30]
[314480421,1708375891367,-500.0,0.00046849,30]
[314480422,1708375891376,-676.335609,0.00046849,14]
[314480423,1708375891387,-402.89939423,0.00046849,30]
[314480424,1708375891396,-676.335609,0.00046849,14]
[314480425,1708375891406,-1506.06,0.00046849,30]
[314480426,1708375891415,-500.0,0.00046849,30]
[314480427,1708375891425,-4807.82,0.00046849,30]
[314480428,1708375891434,-1592.25,0.00046849,30]
[314480429,1708375891443,-2737.65,0.00046849,30]
[314480430,1708375891452,-947.04,0.00046849,30]
[314480431,1708375891461,-500.0,0.00046849,30]
[314480432,1708375891470,-500.0,0.00046849,30]
[314480433,1708375891480,-648.76450578,0.00046849,30]
[314480434,1708375891489,-3582.15,0.00046849,30]
[314480435,1708375891499,-1685.16,0.00046849,30]
[314480436,1708375891509,-500.0,0.00046849,30]
[314480437,1708375891519,-1478.0,0.00046849,30]
[314480438,1708375891529,-500.0,0.00046849,30]
[314480439,1708375891538,-840.54,0.00046849,30]
[314480440,1708375891548,-500.0,0.00046849,30]
[314480441,1708375891557,-689.96,0.00046849,30]
[314480442,1708375891566,-500.0,0.00046849,30]
[314480443,1708375891576,-2210.61,0.00046849,30]
[314480444,1708375891585,-2915.8,0.00046849,30]
[314480445,1708375891595,-500.0,0.00046849,30]
[314480446,1708375891608,-2089.99,0.00046849,30]
[314480447,1708375891617,-500.0,0.00046849,30]
[314480448,1708375891627,-163.74511,0.00046849,14]
[314480449,1708375891637,-163.74511,0.00046849,14]
[314480450,1708375891646,-500.0,0.00046849,30]
[314480451,1708375891656,-2806.73,0.00046849,30]
[314480452,1708375891667,-500.0,0.00046849,30]
[314480453,1708375891676,-500.0,0.00046849,30]
[314480454,1708375891686,-500.0,0.00046849,30]
[314480455,1708375891695,-163.74511,0.00046849,14]
[314480456,1708375891704,-163.74511,0.00046849,14]
[314480457,1708375891713,-500.0,0.00046849,30]
[314480458,1708375891723,-995.73,0.00046849,30]
[314480459,1708375891732,-500.0,0.00046849,30]
[314480460,1708375891742,-535.41,0.00046849,30]
[314480461,1708375891751,-4007.0,0.00046849,30]
[314480462,1708375891761,-500.0,0.00046849,30]
[314480463,1708375891772,-5460.88,0.00046849,30]
[314480464,1708375891781,-720.61,0.00046849,30]
[314480465,1708375891791,-500.0,0.00046849,30]
[314480466,1708375891801,-500.0,0.00046849,30]
[314480467,1708375891810,-770.97,0.00046849,30]
[314480468,1708375891819,-2873.04,0.00046849,30]
[314480469,1708375891828,-500.0,0.00046849,30]
[314480470,1708375891838,-3457.64,0.00046849,30]
[314480471,1708375891847,-500.0,0.00046849,30]
[314480472,1708375891856,-500.0,0.00046849,30]
[314480473,1708375891865,-500.0,0.00046849,30]
[314480474,1708375891874,-3954.52,0.00046849,30]
[314480475,1708375891883,-500.0,0.00046849,30]
[314480476,1708375891893,-2900.34,0.00046849,30]
[314480477,1708375891902,-1032.0,0.00046849,30]
[314480478,1708375891912,-273.15201,0.00046849,14]
[314480479,1708375891921,-1711.5,0.00046849,30]
[314480480,1708375891933,-500.0,0.00046849,30]
[314480481,1708375891942,-500.0,0.00046849,30]
[314480482,1708375891951,-500.0,0.00046849,30]
[314480483,1708375891963,-1637.24,0.00046849,30]
[314480484,1708375891972,-1605.65,0.00046849,30]
[314480485,1708375891982,-500.0,0.00046849,30]
[314480486,1708375891991,-500.0,0.00046849,30]
[314480487,1708375892001,-500.0,0.00046849,30]
[314480488,1708375892010,-4980.44,0.00046849,30]
[314480489,1708375892019,-1340.91,0.00046849,30]
[314480490,1708375892028,-1138.43,0.00046849,30]
[314480491,1708375892037,-500.0,0.00046849,30]
[314480492,1708375892047,-4358.32,0.00046849,30]
[314480493,1708375892056,-3294.28,0.00046849,30]
[314480494,1708375892075,-500.0,0.00046849,30]
[314480495,1708375892094,-500.0,0.00046849,30]
[314480496,1708375892113,-528.63942899,0.00046849,30]
[314480497,1708375892127,-500.0,0.00046849,30]
[314480498,1708375892138,-500.0,0.00046849,30]
[314480499,1708375892148,-1721.24,0.00046849,30]
[314480500,1708375892158,-151.0,0.00046849,14]
[314480501,1708375892167,-2226.31,0.00046849,30]
[314480502,1708375892178,-151.0,0.00046849,14]
[314480503,1708375892187,-500.0,0.00046849,30]
[314480504,1708375892197,-11469.95,0.00046849,30]
[314480505,1708375892209,-500.0,0.00046849,30]
[314480506,1708375892218,-500.0,0.00046849,30]
[314480507,1708375892232,-500.0,0.00046849,30]
[314480508,1708375892250,-523.24036707,0.00046849,30]
[314480509,1708375892260,-151.0,0.00046849,14]
[314480510,1708375892270,-285.281305,0.00046849,14]
[314480511,1708375892279,-500.0,0.00046849,30]
[314480512,1708375892288,-500.0,0.00046849,30]
[314480513,1708375892298,-500.0,0.00046849,30]
[314480514,1708375892308,-1155.9,0.00046849,30]
[314480515,1708375892317,-914.27,0.00046849,30]
[314480516,1708375892327,-4304.4,0.00046849,30]
[314480517,1708375892336,-3503.11,0.00046849,30]
[314480518,1708375892345,-500.0,0.00046849,30]
[314480519,1708375892358,-500.0,0.00046849,30]
[314480520,1708375892377,-500.0,0.00046849,30]
[314480521,1708375892386,-2631.73,0.00046849,30]
[314480522,1708375892396,-500.0,0.00046849,30]
[314480523,1708375892405,-500.0,0.00046849,30]
[314480524,1708375892415,-500.0,0.00046849,30]
[314480525,1708375892424,-7606.19,0.00046849,30]
[314480526,1708375892433,-500.0,0.00046849,30]
[314480527,1708375892443,-500.0,0.00046849,30]
[314480528,1708375892452,-500.0,0.00046849,30]
[314480529,1708375892461,-2816.09,0.00046849,30]
[314480530,1708375892471,-1106.22,0.00046849,30]
[314480531,1708375892481,-500.0,0.00046849,30]
[314480532,1708375892490,-1288.03,0.00046849,30]
[314480533,1708375892499,-500.0,0.00046849,30]
[314480534,1708375892508,-500.0,0.00046849,30]
[314480535,1708375892518,-800.19,0.00046849,30]
[314480536,1708375892528,-500.0,0.00046849,30]
[314480537,1708375892538,-183.040066,0.00046849,14]
[314480538,1708375892548,-183.040066,0.00046849,14]
[314480539,1708375892557,-500.0,0.00046849,30]
[314480540,1708375892566,-500.0,0.00046849,30]
[314480541,1708375892575,-500.0,0.00046849,30]
[314480542,1708375892585,-5000.0,0.00046849,33]
[314480543,1708375892594,-4924.17,0.00046849,30]
[314480544,1708375892603,-2194.88,0.00046849,30]
[314480545,1708375892612,-500.0,0.00046849,30]
[314480546,1708375892622,-6760.53,0.00046849,30]
[314480547,1708375892631,-1418.43,0.00046849,30]
[314480548,1708375892641,-660.946317,0.00046849,14]
[314480549,1708375892650,-660.946317,0.00046849,14]
[314480550,1708375892659,-707.46,0.00046849,30]
[314480551,1708375892669,-500.0,0.00046849,30]
[314480552,1708375892678,-500.0,0.00046849,30]
[314480553,1708375892860,-500.0,0.00046849,30]
[314480554,1708375892869,-1586.82,0.00046849,30]
[314480555,1708375892879,-500.0,0.00046849,30]
[314480556,1708375892889,-500.0,0.00046849,30]
[314480557,1708375892898,-6176.75,0.00046849,30]
[314480558,1708375892908,-660.946317,0.00046849,14]
[314480559,1708375892917,-660.946318,0.00046849,14]
[314480560,1708375892927,-974.61,0.00046849,30]
[314480561,1708375892936,-183.040066,0.00046849,14]
[314480562,1708375892946,-500.0,0.00046849,30]
[314480563,1708375892955,-183.040065,0.00046849,14]
[314480564,1708375892964,-502.06,0.00046849,30]
[314480565,1708375892974,-620.96,0.00046849,30]
[314480566,1708375892983,-500.0,0.00046849,30]
[314480567,1708375892993,-500.0,0.00046849,30]
[314480568,1708375893002,-1370.86,0.00046849,30]
[314480569,1708375893011,-500.0,0.00046849,30]
[314480570,1708375893022,-500.0,0.00046849,30]
[314480571,1708375893031,-18642.5,0.00046849,30]
[314480572,1708375893040,-500.0,0.00046849,30]
[314480573,1708375893049,-194.517058,0.00046849,14]
[314480574,1708375893058,-194.517058,0.00046849,14]
[314480575,1708375893070,-529.41814717,0.00046849,30]
[314480576,1708375893082,-957.13,0.00046849,30]
[314480577,1708375893091,-664.1,0.00046849,30]
[314480578,1708375893101,-500.0,0.00046849,30]
[314480579,1708375893111,-2270.35,0.00046849,30]
[314480580,1708375893120,-1421.33,0.00046849,30]
[314480581,1708375893130,-1319.59,0.00046849,30]
[314480582,1708375893140,-500.0,0.00046849,30]
[314480583,1708375893149,-194.517058,0.00046849,14]
[314480584,1708375893161,-500.0,0.00046849,30]
[314480585,1708375893171,-194.517058,0.00046849,14]
[314480586,1708375893180,-43487.96,0.00046849,30]
[314480587,1708375893189,-500.0,0.00046849,30]
[314480588,1708375893199,-1370.06,0.00046849,30]
[314480589,1708375893208,-3424.97,0.00046849,30]
[314480590,1708375893218,-4401.37,0.00046849,30]
[314480591,1708375893228,-500.0,0.00046849,30]
[314480592,1708375893238,-602.78930133,0.00046849,30]
[314480593,1708375893247,-500.0,0.00046849,30]
[314480594,1708375893257,-500.0,0.00046849,30]
[314480595,1708375893267,-2622.18,0.00046849,30]
[314480596,1708375893276,-500.0,0.00046849,30]
[314480597,1708375893285,-500.0,0.00046849,30]
[314480598,1708375893295,-1138.11,0.00046849,30]
[314480599,1708375893304,-500.0,0.00046849,30]
[314480600,1708375893313,-731.53,0.00046849,30]
[314480601,1708375893323,-500.0,0.00046849,30]
[314480602,1708375893332,-500.0,0.00046849,30]
[314480603,1708375893341,-500.0,0.00046849,30]
[314480604,1708375893351,-500.0,0.00046849,30]
[314480605,1708375893361,-571.908733,0.00046849,14]
[314480606,1708375893371,-3031.14,0.00046849,30]
[314480607,1708375893381,-2149.102666,0.00046849,14]
[314480608,1708375893391,-571.908733,0.00046849,14]
[314480609,1708375893402,-2149.102666,0.00046849,14]
[314480610,1708375893411,-500.0,0.00046849,30]
[314480611,1708375893421,-924.5,0.00046849,30]
[314480612,1708375893431,-501.9,0.00046849,30]
[314480613,1708375893441,-500.0,0.00046849,30]
[314480614,1708375893451,-724.1,0.00046849,2]
[314480615,1708375893461,-837.742386,0.00046849,14]
[314480616,1708375893471,-837.742386,0.00046849,14]
[314480617,1708375893481,-3267.905378,0.00046849,14]
[314480618,1708375893492,-3267.905378,0.00046849,14]
[314480619,1708375893501,-571.908733,0.00046849,14]
[314480620,1708375893512,-571.908738,0.00046849,14]
[314480621,1708375893525,-500.0,0.00046849,30]
[314480622,1708375893536,-730.67,0.00046849,30]
[314480623,1708375893546,-500.0,0.00046849,30]
[314480624,1708375893557,-500.0,0.00046849,30]
[314480625,1708375893568,-2149.102666,0.00046849,14]
[314480626,1708375893578,-2149.102676,0.00046849,14]
[314480627,1708375893589,-3267.905378,0.00046849,14]
[314480628,1708375893600,-3267.90537,0.00046849,14]
[314480629,1708375893610,-500.0,0.00046849,30]
[314480630,1708375893620,-500.0,0.00046849,30]
[314480631,1708375893630,-500.0,0.00046849,30]
[314480632,1708375893640,-268.88,0.00046849,30]
[314480633,1708375893650,-500.0,0.00046849,30]
[314480634,1708375893661,-2841.63,0.00046849,30]
[314480635,1708375893671,-8215.23,0.00046849,30]
[314480636,1708375893681,-500.0,0.00046849,30]
[314480637,1708375893691,-642.81,0.00046849,30]
[314480638,1708375893702,-500.0,0.00046849,30]
[314480639,1708375893712,-500.0,0.00046849,30]
[314480640,1708375893721,-500.0,0.00046849,30]
[314480641,1708375893731,-837.742386,0.00046849,14]
[314480642,1708375893745,-3313.69,0.00046849,30]
[314480643,1708375893778,-2832.73,0.00046849,30]
[314480644,1708375893831,-837.74238652,0.00046849,14]
[314480645,1708375893882,-506.74,0.00046849,30]
[314480646,1708375893901,-2484.41,0.00046849,30]
[314480647,1708375893911,-2792.02,0.00046849,30]
[314480648,1708375893921,-3103.46,0.00046849,30]
[314480649,1708375893931,-500.0,0.00046849,30]
[314480650,1708375893941,-500.0,0.00046849,30]
[314480651,1708375893951,-1617.41,0.00046849,30]
[314480652,1708375893961,-500.0,0.00046849,30]
[314480653,1708375893970,-3395.26,0.00046849,30]
[314480654,1708375893980,-151.0,0.00046849,14]
[314480655,1708375893990,-974.83,0.00046849,30]
[314480656,1708375894000,-151.0,0.00046849,14]
[314480657,1708375894010,-500.0,0.00046849,30]
[314480658,1708375894021,-175.38525,0.00046849,14]
[314480659,1708375894031,-571.28,0.00046849,30]
[314480660,1708375894042,-4198.24,0.00046849,30]
[314480661,1708375894051,-1148.556697,0.00046849,14]
[314480662,1708375894063,-1148.556697,0.00046849,14]
[314480663,1708375894074,-500.0,0.00046849,30]
[314480664,1708375894089,-503.46342662,0.00046849,30]
[314480665,1708375894101,-1148.556697,0.00046849,14]
[314480666,1708375894111,-1148.556697,0.00046849,14]
[314480667,1708375894123,-1617.03,0.00046849,30]
[314480668,1708375894133,-1442.14,0.00046849,30]
[314480669,1708375894143,-555.41,0.00046849,30]
[314480670,1708375894155,-500.0,0.00046849,30]
[314480671,1708375894167,-500.0,0.00046849,30]
[314480672,1708375894178,-500.0,0.00046849,30]
[314480673,1708375894187,-2704.31,0.00046849,30]
[314480674,1708375894197,-500.0,0.00046849,30]
[314480675,1708375894207,-3256.74,0.00046849,30]
[314480676,1708375894217,-1307.39,0.00046849,30]
[314480677,1708375894227,-10591.79,0.00046849,30]
[314480678,1708375894244,-906.19,0.00046849,30]
[314480679,1708375894266,-1843.46,0.00046849,30]
[314480680,1708375894284,-500.0,0.00046849,30]
[314480681,1708375894304,-500.0,0.00046849,30]
[314480682,1708375894321,-500.0,0.00046849,30]
[314480683,1708375894338,-2160.68,0.00046849,30]
[314480684,1708375894357,-468.996286,0.00046849,14]
[314480685,1708375894374,-468.996286,0.00046849,14]
[314480686,1708375894393,-500.0,0.00046849,30]
[314480687,1708375894411,-1427.99,0.00046849,30]
[314480688,1708375894429,-595.56,0.00046849,30]
[314480689,1708375894451,-468.996286,0.00046849,14]
[314480690,1708375894471,-645.76,0.00046849,30]
[314480691,1708375894484,-468.996281,0.00046849,14]
[314480692,1708375894500,-538.66,0.00046849,30]
[314480693,1708375894518,-500.0,0.00046849,30]
[314480694,1708375894532,-993.04,0.00046849,30]
[314480695,1708375894550,-500.0,0.00046849,30]
[314480696,1708375894565,-2630.29,0.00046849,30]
[314480697,1708375894581,-688.24,0.00046849,30]
[314480698,1708375894597,-500.0,0.00046849,30]
[314480699,1708375894613,-1027.61,0.00046849,30]
[314480700,1708375894629,-232.813834,0.00046849,14]
[314480701,1708375894644,-1435.94,0.00046849,30]
[314480702,1708375894660,-232.813834,0.00046849,14]
[314480703,1708375894675,-1182.36,0.00046849,30]
[314480704,1708375894691,-10839.07,0.00046849,30]
[314480705,1708375894706,-1000.0,0.00046849,7]
[314480706,1708375894721,-500.0,0.00046849,30]
[314480707,1708375894736,-232.813834,0.00046849,14]
[314480708,1708375894751,-232.813824,0.00046849,14]
[314480709,1708375894766,-500.0,0.00046849,30]
[314480710,1708375894781,-2808.92,0.00046849,30]
[314480711,1708375894795,-500.0,0.00046849,30]
[314480712,1708375894811,-500.0,0.00046849,30]
[314480713,1708375894827,-500.0,0.00046849,30]
[314480714,1708375894843,-151.0,0.00046849,14]
[314480715,1708375894859,-500.0,0.00046849,30]
[314480716,1708375894875,-151.0,0.00046849,14]
[314480717,1708375894890,-697.96,0.00046849,30]
[314480718,1708375894906,-796.11,0.00046849,30]
[314480719,1708375894921,-500.0,0.00046849,30]
[314480720,1708375894935,-571.63,0.00046849,30]
[314480721,1708375894950,-500.0,0.00046849,30]
[314480722,1708375894965,-5101.05,0.00046849,30]
[314480723,1708375894981,-553.84,0.00046849,30]
[314480724,1708375894997,-541.887298,0.00046849,14]
[314480725,1708375895013,-512.7039634,0.00046849,30]
[314480726,1708375895028,-541.887298,0.00046849,14]
[314480727,1708375895045,-3052.86,0.00046849,30]
[314480728,1708375895064,-1303.89,0.00046849,30]
[314480729,1708375895086,-500.0,0.00046849,30]
[314480730,1708375895102,-500.0,0.00046849,30]
[314480731,1708375895121,-1201.23,0.00046849,30]
[314480732,1708375895136,-500.0,0.00046849,30]
[314480733,1708375895152,-500.0,0.00046849,30]
[314480734,1708375895170,-500.0,0.00046849,30]
[314480735,1708375895185,-541.887298,0.00046849,14]
[314480736,1708375895200,-541.887304,0.00046849,14]
[314480737,1708375895223,-656.54,0.00046849,30]
[314480738,1708375895239,-3044.92,0.00046849,30]
[314480739,1708375895256,-2710.85,0.00046849,30]
[314480740,1708375895274,-991.51,0.00046849,30]
[314480741,1708375895290,-500.0,0.00046849,30]
[314480742,1708375895306,-1083.47,0.00046849,30]
[314480743,1708375895323,-500.0,0.00046849,30]
[314480744,1708375895340,-4385.72,0.00046849,30]
[314480745,1708375895358,-500.0,0.00046849,30]
[314480746,1708375895374,-500.0,0.00046849,30]
[314480747,1708375895392,-500.0,0.00046849,30]
[314480748,1708375895409,-500.0,0.00046849,30]
[314480749,1708375895426,-500.0,0.00046849,30]
[314480750,1708375895443,-500.0,0.00046849,30]
[314480751,1708375895460,-530.18707854,0.00046849,30]
[314480752,1708375895477,-500.0,0.00046849,30]
[314480753,1708375895493,-500.0,0.00046849,30]
[314480754,1708375895511,-500.0,0.00046849,30]
[314480755,1708375895528,-500.0,0.00046849,30]
[314480756,1708375895544,-939.16,0.00046849,30]
[314480757,1708375895561,-3967.79,0.00046849,30]
[314480758,1708375895578,-587.09,0.00046849,30]
[314480759,1708375895595,-471.07109542,0.00046849,30]
[314480760,1708375895611,-10289.24,0.00046849,30]
[314480761,1708375895628,-2003.31,0.00046849,30]
[314480762,1708375895644,-500.0,0.00046849,30]
[314480763,1708375895660,-500.0,0.00046849,30]
[314480764,1708375895676,-500.0,0.00046849,30]
[314480765,1708375895694,-5980.587914,0.00046849,14]
[314480766,1708375895711,-158.160054,0.00046849,14]
[314480767,1708375895726,-5980.587914,0.00046849,14]
[314480768,1708375895743,-158.160054,0.00046849,14]
[314480769,1708375895760,-990.49,0.00046849,30]
[314480770,1708375895776,-500.0,0.00046849,30]
[314480771,1708375895792,-3009.13,0.00046849,30]
[314480772,1708375895809,-500.0,0.00046849,30]
[314480773,1708375895825,-500.0,0.00046849,30]
[314480774,1708375895841,-158.160054,0.00046849,14]
[314480775,1708375895857,-5980.587914,0.00046849,14]
[314480776,1708375895874,-158.160064,0.00046849,14]
[314480777,1708375895891,-5980.587916,0.00046849,14]
[314480778,1708375895909,-500.0,0.00046849,14]
[314480779,1708375895924,-5612.0,0.00046849,30]
[314480780,1708375895940,-9120.54,0.00046849,30]
[314480781,1708375895958,-500.0,0.00046849,30]
[314480782,1708375895974,-3562.84,0.00046849,30]
[314480783,1708375895992,-500.0,0.00046849,30]
[314480784,1708375896010,-500.0,0.00046849,30]
[314480785,1708375896027,-500.0,0.00046849,30]
[314480786,1708375896044,-3072.77,0.00046849,30]
[314480787,1708375896060,-500.0,0.00046849,30]
[314480788,1708375896080,-500.0,0.00046849,30]
[314480789,1708375896097,-500.0,0.00046849,30]
[314480790,1708375896114,-500.0,0.00046849,30]
[314480791,1708375896129,-550.91486535,0.00046849,30]
[314480792,1708375896145,-500.0,0.00046849,30]
[314480793,1708375896162,-2054.19,0.00046849,30]
[314480794,1708375896178,-1723.46,0.00046849,30]
[314480795,1708375896194,-500.0,0.00046849,30]
[314480796,1708375896209,-500.0,0.00046849,30]
[314480797,1708375896226,-1071.31,0.00046849,30]
[314480798,1708375896240,-1151.9,0.00046849,30]
[314480799,1708375896256,-545.97,0.00046849,30]
[314480800,1708375896272,-500.0,0.00046849,2]
[314480801,1708375896288,-2309.28,0.00046849,30]
[314480802,1708375896303,-151.0,0.00046849,14]
[314480803,1708375896319,-151.0,0.00046849,14]
[314480804,1708375896334,-151.0,0.00046849,14]
[314480805,1708375896602,-500.0,0.00046849,30]
[314480806,1708375896617,-235.422472,0.00046849,14]
[314480807,1708375896627,-1803.4,0.00046849,30]
[314480808,1708375896638,-277.644288,0.00046849,14]
[314480809,1708375896649,-170.336152,0.00046849,14]
[314480810,1708375896659,-500.0,0.00046849,30]
[314480811,1708375896669,-170.336152,0.00046849,14]
[314480812,1708375896679,-1886.18,0.00046849,30]
[314480813,1708375896689,-500.0,0.00046849,30]
[314480814,1708375896700,-500.0,0.00046849,30]
[314480815,1708375896711,-423.67503333,0.00046849,30]
[314480816,1708375896721,-500.0,0.00046849,30]
[314480817,1708375896731,-500.0,0.00046849,30]
[314480818,1708375896741,-2872.4,0.00046849,30]
[314480819,1708375896752,-2704.83,0.00046849,30]
[314480820,1708375896762,-170.336152,0.00046849,14]
[314480821,1708375896772,-500.0,0.00046849,30]
[314480822,1708375896782,-170.336156,0.00046849,14]
[314480823,1708375896793,-500.0,0.00046849,30]
[314480824,1708375896803,-542.05,0.00046849,30]
[314480825,1708375896812,-721.8,0.00046849,30]
[314480826,1708375896822,-520.83,0.00046849,30]
[314480827,1708375896832,-500.0,0.00046849,30]
[314480828,1708375896842,-3755.12,0.00046849,30]
[314480829,1708375896852,-500.0,0.00046849,30]
[314480830,1708375896862,-4422.39,0.00046849,30]
[314480831,1708375896872,-3732.75,0.00046849,30]
[314480832,1708375896882,-2288.52,0.00046849,30]
[314480833,1708375896891,-500.0,0.00046849,30]
[314480834,1708375896901,-500.0,0.00046849,30]
[314480835,1708375896911,-500.0,0.00046849,30]
[314480836,1708375896920,-500.0,0.00046849,30]
[314480837,1708375896930,-500.0,0.00046849,30]
[314480838,1708375896939,-151.0,0.00046849,14]
[314480839,1708375896949,-203.325949,0.00046849,14]
[314480840,1708375896958,-1041.64,0.00046849,30]
[314480841,1708375896968,-500.87,0.00046849,30]
[314480842,1708375896977,-4475.17,0.00046849,30]
[314480843,1708375896986,-500.0,0.00046849,30]